bitfinex-derivatives/quotes_ETHF0:USTF0_20250213
["timestamp","ask_amount","ask_price","bid_price","bid_amount"]
[1739466352823,0.5957,2635.0,2634.8,0.00569638]
[1739466353122,0.75893,2635.0,2634.9,0.75893]
[1739466353319,0.75893,2634.9,2634.8,0.00569638]
[1739466354425,1.89759,2634.6,2633.9,6.60742796]
[1739466354613,3.96692,2634.3,2634.2,0.75913]
[1739466354816,3.2078,2634.3,2633.9,3.2078]
[1739466355019,0.7592,2634.0,2633.9,0.75921]
[1739466355319,1.1292,2634.5,2633.9,3.39962796]
[1739466355526,1.1292,2634.5,2633.9,3.40532434]
[1739466355724,3.96692,2634.3,2634.2,0.75913]
[1739466356323,3.96692,2634.3,2633.9,3.40532434]
[1739466356525,3.96692,2634.3,2634.2,0.75913]
[1739466356733,3.2078,2634.3,2634.2,0.75913]
[1739466357023,3.2078,2634.9,2634.2,3.39962796]
[1739466357323,3.2078,2634.9,2634.8,0.75896]
[1739466357825,3.2078,2635.2,2635.1,0.75887]
[1739466358928,3.2078,2635.2,2634.9,0.5588]
[1739466359131,3.96667,2635.2,2635.0,0.75888]
[1739466359428,3.2078,2635.2,2635.1,0.75887]
[1739466360033,0.76449638,2635.4,2634.9,0.5588]
[1739466360224,0.00569638,2635.4,2634.9,0.5588]
[1739466360531,0.00569638,2635.4,2635.3,0.75881]
[1739466360732,3.2078,2636.2,2636.1,0.75858]
[1739466362031,0.00569638,2636.4,2636.2,0.75854]
[1739466362227,0.76421638,2636.4,2636.1,0.75857]
[1739466362429,0.00569638,2636.4,2636.0,1.1395]
[1739466362631,3.2078,2636.3,2636.1,0.75857]
[1739466362927,0.00569638,2636.4,2636.3,0.75853]
[1739466363236,0.00569638,2636.4,2636.3,2.56253]
[1739466363829,3.2078,2636.6,2636.5,0.75847]
[1739466364027,3.2078,2636.6,2636.5,4.15809796]
[1739466364534,3.96614,2637.0,2636.7,0.7584]
[1739466364738,3.2078,2637.0,2636.5,3.39962796]
[1739466364935,3.2078,2637.0,2636.6,0.5749]
[1739466365330,0.00569638,2637.1,2637.0,0.75832]
[1739466367136,3.2078,2637.6,2637.5,0.75818]
[1739466367933,0.75811,2637.8,2637.6,0.75815]
[1739466368335,3.2078,2637.9,2637.4,0.00569638]
[1739466368635,3.2078,2637.6,2637.4,0.00569638]
[1739466369535,0.75818,2637.5,2637.4,0.00569638]
[1739466369936,3.2078,2637.6,2637.4,0.00569638]
[1739466370231,3.96597,2637.6,2637.4,0.76390638]
[1739466370432,0.75818,2637.5,2637.4,0.00569638]
[1739466370829,3.96596,2637.6,2637.4,0.76389638]
[1739466371227,3.2078,2637.6,2637.5,0.75818]
[1739466371731,3.21349638,2638.0,2637.5,3.94785494]
[1739466371934,3.21349638,2638.0,2637.9,0.75807]
[1739466372240,0.00569638,2638.0,2637.9,0.75807]
[1739466373132,0.76373638,2638.0,2637.9,0.75807]
[1739466373328,0.00569638,2638.0,2637.9,0.75807]
[1739466373736,0.00569638,2638.0,2637.9,1.35967]
[1739466375540,0.76373638,2638.0,2637.9,3.16167]
[1739466375936,0.00569638,2638.0,2637.9,3.16167]
[1739466378834,3.2078,2638.8,2638.7,0.75784]
[1739466379035,3.2078,2639.3,2638.6,3.94785494]
[1739466379238,3.2078,2639.3,2638.7,1.8946]
[1739466379440,3.2078,2639.3,2639.0,0.75773]
[1739466379735,3.2078,2639.3,2638.6,44.74785494]
[1739466379931,3.2078,2639.3,2638.9,0.00568548]
[1739466380134,3.96555,2639.0,2638.9,0.00568548]
[1739466381545,3.2078,2639.0,2638.9,0.00568548]
[1739466381837,3.96555,2639.0,2638.9,0.00568548]
[1739466382441,3.2078,2639.0,2638.9,0.76346548]
[1739466382841,3.96555,2639.0,2638.9,0.76346548]
[1739466383042,3.2078,2639.0,2638.9,0.76346548]
[1739466383446,3.96555,2639.0,2638.9,0.76346548]
[1739466383838,3.96555,2639.0,2638.9,0.00568548]
[1739466384739,3.2078,2639.0,2638.9,0.00568548]
[1739466384941,3.96555,2639.0,2638.9,0.00568548]
[1739466385347,3.96555,2639.0,2638.9,0.76346548]
[1739466385649,3.96555,2639.0,2638.9,0.00568548]
[1739466385946,11.0088,2639.0,2638.1,3.2078]
[1739466386147,3.2078,2638.5,2638.0,3.94785494]
[1739466386444,0.75798,2638.2,2638.1,0.75799]
[1739466386846,3.2078,2638.5,2638.0,3.94785494]
[1739466387149,0.00564914,2638.4,2638.3,0.75795]
[1739466387442,3.2078,2639.1,2639.0,0.75775]
[1739466387646,3.96552,2639.1,2639.0,3.94785494]
[1739466387840,0.75778,2638.9,2638.8,1.3331]
[1739466388142,1.89438,2639.0,2638.5,42.601]
[1739466388441,0.75786,2638.6,2638.5,1.801]
[1739466388642,3.2078,2638.8,2638.4,4.70574494]
[1739466388643,0.75789,2638.5,2638.4,4.70574494]
[1739466388950,3.2078,2638.5,2638.4,4.70574494]
[1739466389149,3.2078,2638.8,2638.4,3.94785494]
[1739466389444,0.75785,2638.7,2638.6,0.75785]
[1739466389840,3.2078,2638.8,2638.4,3.94785494]
[1739466390039,3.2078,2638.5,2638.2,1.801]
[1739466390237,0.75787,2638.6,2638.5,0.75788]
[1739466390440,3.2078,2638.8,2638.2,1.801]
[1739466390441,0.75794,2638.4,2638.3,0.75794]
[1739466390641,3.2078,2638.8,2638.2,1.801]
[1739466391041,3.2078,2638.8,2638.3,1.89488]
[1739466391243,3.2078,2638.8,2638.2,3.69593]
[1739466391447,3.2078,2638.8,2638.7,0.75784]
[1739466391846,3.2078,2638.8,2638.5,3.39000355]
[1739466392146,3.2078,2638.8,2638.2,3.39000355]
[1739466392348,3.2078,2638.5,2638.4,0.75792]
[1739466392743,3.2078,2638.8,2638.7,0.75784]
[1739466393341,1.89397,2639.6,2638.7,1.91274]
[1739466393541,1.7589,2639.7,2639.4,0.75763]
[1739466393542,0.06591356,2639.5,2639.4,0.75763]
[1739466393745,1.68415852,2639.7,2639.5,3.39000355]
[1739466393947,1.1557,2639.7,2639.6,0.75758]
[1739466394141,1.1557,2639.7,2639.5,3.39000355]
[1739466394345,1.1557,2639.7,2639.2,3.39568903]
[1739466394346,3.2078,2639.6,2639.2,3.39568903]
[1739466394547,0.75766,2639.3,2639.2,4.15335903]
[1739466394742,0.75766,2639.3,2639.2,3.39568903]
[1739466394946,3.96546,2639.3,2639.2,3.39568903]
[1739466395142,3.96546,2639.3,2639.2,0.00568548]
[1739466395651,4.49427179,2639.3,2639.2,0.00568548]
[1739466396752,4.49427179,2639.3,2638.3,3.39000355]
[1739466396753,14.99253152,2639.3,2638.3,3.39000355]
[1739466396949,3.2078,2638.5,2638.0,3.39000355]
[1739466397159,3.2078,2638.5,2638.3,3.39000355]
[1739466397460,0.75792,2638.4,2638.3,3.39000355]
[1739466397756,3.2078,2638.5,2637.9,0.5535]
[1739466397757,0.75801,2638.1,2638.0,3.39000355]
[1739466397942,3.96581,2638.1,2638.0,3.39000355]
[1739466398146,3.2078,2638.1,2638.0,3.39000355]
[1739466398347,3.96581,2638.1,2638.0,3.39000355]
[1739466398950,3.2078,2638.1,2638.0,3.39000355]
[1739466399148,3.2078,2638.1,2637.9,1.31155]
[1739466399149,3.73753216,2638.1,2637.9,0.5535]
[1739466399345,4.49556216,2638.1,2637.9,0.5535]
[1739466399545,3.73753216,2638.1,2638.0,4.14804355]
[1739466399853,0.52973216,2638.1,2638.0,4.14804355]
[1739466400052,3.2078,2638.4,2638.0,3.39000355]
[1739466400453,3.2078,2638.4,2638.3,0.75795]
[1739466400853,3.73753216,2638.4,2638.1,0.75799]
[1739466401049,0.75797,2638.3,2638.0,3.39000355]
[1739466401252,0.75796,2638.3,2638.0,4.14801355]
[1739466401452,1.28769216,2638.3,2638.1,0.75799]
[1739466401749,0.52973216,2638.3,2638.2,4.70384746]
[1739466401954,3.2078,2638.4,2638.2,3.94586746]
[1739466402156,3.2078,2638.4,2638.3,0.75795]
[1739466402354,0.00568548,2638.6,2638.2,7.15366746]
[1739466402656,0.00568548,2638.6,2638.5,4.70375746]
[1739466403645,0.00568548,2638.6,2638.3,41.9008]
[1739466403847,0.75792,2638.4,2638.1,1.8]
[1739466404054,0.75798,2638.2,2638.1,1.8]
[1739466404355,0.75796,2638.3,2638.1,0.75799]
[1739466404660,0.75799,2638.2,2638.0,0.75802]
[1739466404855,0.75802,2638.1,2637.9,9.01290746]
[1739466405056,3.2078,2638.5,2637.9,3.7613]
[1739466405351,1.90038548,2638.6,2637.8,0.00568548]
[1739466405352,3.2078,2638.2,2637.8,0.00568548]
[1739466405553,1.89486,2638.4,2637.8,0.00568548]
[1739466405554,3.96587,2637.9,2637.8,0.00568548]
[1739466405749,3.2078,2637.9,2637.8,0.00568548]
[1739466405950,3.2078,2638.2,2638.1,0.75801]
[1739466406353,3.2078,2638.2,2638.0,3.94586746]
[1739466406659,3.2078,2638.2,2638.1,0.75801]
[1739466407459,3.2078,2638.2,2638.1,1.34131]
[1739466407651,0.75792,2638.5,2638.1,1.34131]
[1739466407652,3.2078,2638.5,2638.4,0.75792]
[1739466407857,0.00568548,2638.6,2638.5,0.75789]
[1739466408364,0.00568548,2638.6,2638.5,41.55789]
[1739466409055,0.00568548,2638.6,2638.3,0.5436]
[1739466409261,3.2078,2638.4,2638.1,4.52916746]
[1739466409464,3.96573,2638.4,2638.2,0.75796]
[1739466409661,3.96573,2638.4,2638.3,0.75795]
[1739466409862,3.2078,2638.4,2638.1,4.52916746]
[1739466410062,3.2078,2638.4,2638.3,0.75795]
[1739466410275,3.2078,2638.4,2638.1,4.52916746]
[1739466410763,0.75798,2638.2,2638.1,0.5833]
[1739466410971,3.2078,2638.4,2637.8,3.95155294]
[1739466411162,0.75807,2637.9,2637.8,0.76377548]
[1739466411464,3.2078,2638.1,2637.8,0.00568548]
[1739466411665,3.96582,2638.1,2637.9,0.75804]
[1739466411864,0.75804,2638.0,2637.9,0.75804]
[1739466412367,3.2078,2638.1,2638.0,0.75804]
[1739466412569,3.2078,2638.1,2637.8,3.95155294]
[1739466412762,0.75807,2637.9,2637.8,0.00568548]
[1739466415162,2.49179,2637.9,2637.2,3.94586746]
[1739466415368,0.75822,2637.4,2637.2,0.75826]
[1739466415565,0.75821,2637.4,2637.2,0.75825]
[1739466415866,3.2078,2637.5,2636.9,7.15366746]
[1739466416364,3.2078,2637.2,2636.9,4.70988294]
[1739466416557,3.2078,2637.2,2636.9,0.76402548]
[1739466416756,3.2078,2637.2,2636.9,0.00568548]
[1739466416963,0.75832,2637.0,2636.9,0.00568548]
[1739466417356,3.21348548,2637.2,2637.1,0.7583]
[1739466417564,3.21348548,2637.2,2636.9,3.95155294]
[1739466417767,3.21348548,2637.2,2637.1,0.7583]
[1739466418465,0.00568548,2637.2,2637.1,3.9661]
[1739466418668,3.2078,2637.8,2637.7,0.75812]
[1739466419060,3.96589,2637.8,2637.7,0.75812]
[1739466419261,3.2078,2637.8,2637.7,0.75812]
[1739466419569,3.2078,2637.8,2637.6,0.5528]
[1739466419765,0.75812,2637.7,2637.6,0.5528]
[1739466420266,3.2078,2637.8,2637.6,0.5528]
[1739466420573,0.00568548,2638.0,2637.6,0.5528]
[1739466420880,0.75812,2637.7,2637.6,0.5528]
[1739466421170,3.2078,2637.8,2637.6,0.5528]
[1739466421370,3.96591,2637.8,2637.6,0.5528]
[1739466421568,3.2078,2637.8,2637.7,0.75812]
[1739466421774,3.96589,2637.8,2637.7,0.75812]
[1739466422071,0.00568548,2638.0,2637.6,0.5528]
[1739466422274,0.00568548,2638.0,2637.6,1.31094]
[1739466422472,3.2078,2637.8,2637.3,0.5507]
[1739466422771,3.96599,2637.5,2637.3,1.30892]
[1739466422967,3.96599,2637.5,2637.4,0.75821]
[1739466423178,3.2078,2637.5,2637.4,0.75821]
[1739466423477,3.96591,2637.8,2637.3,0.5507]
[1739466423773,3.2078,2637.8,2637.3,0.5507]
[1739466423969,0.75819,2637.5,2637.4,0.7582]
[1739466424574,0.75821,2637.4,2637.3,0.5507]
[1739466424775,3.2078,2637.5,2637.3,0.5507]
[1739466425072,3.2078,2637.5,2637.4,0.75821]
[1739466425773,0.75821,2637.4,2637.3,0.5507]
[1739466426774,3.966,2637.5,2637.4,0.75821]
[1739466426973,3.2078,2637.5,2637.4,0.75821]
[1739466427373,3.2078,2637.9,2637.4,0.75821]
[1739466427574,3.2078,2637.9,2637.5,3.94586746]
[1739466427776,3.2078,2637.9,2637.8,0.75809]
[1739466428478,0.75787,2638.6,2638.5,0.75789]
[1739466428675,3.2078,2638.7,2638.2,3.94586746]
[1739466428973,3.96564,2638.7,2638.6,0.75786]
[1739466429376,3.2078,2638.7,2638.6,0.75786]
[1739466429576,0.5921,2639.1,2638.6,0.75786]
[1739466429577,3.7999,2639.1,2638.6,0.75786]
[1739466429781,0.75766,2639.3,2639.1,0.7577]
[1739466430075,0.75766,2639.3,2639.0,0.75773]
[1739466430269,3.2078,2639.1,2638.8,3.94586746]
[1739466430470,3.2078,2639.1,2639.0,0.75775]
[1739466430671,3.2078,2639.5,2638.9,3.2078]
[1739466430866,3.2078,2639.8,2639.3,3.94586746]
[1739466431068,3.2078,2640.2,2639.6,7.15366746]
[1739466431272,3.2078,2640.2,2640.0,3.94586746]
[1739466431475,3.2078,2640.2,2639.7,3.94586746]
[1739466431879,3.2078,2640.2,2640.0,3.94586746]
[1739466432281,3.2078,2640.2,2640.1,0.5993]
[1739466435269,3.2078,2640.2,2640.0,3.94586746]
[1739466435474,3.2078,2640.2,2639.7,3.94586746]
[1739466435674,3.2078,2639.8,2639.7,0.75755]
[1739466436087,3.2078,2639.8,2639.6,3.95155294]
[1739466436774,0.5984,2640.0,2639.7,0.75755]
[1739466436982,3.2078,2640.1,2639.6,3.95155294]
[1739466437478,0.75755,2639.7,2639.6,0.00568548]
[1739466438374,3.2078,2639.8,2639.7,0.75755]
[1739466438578,3.2078,2639.8,2639.6,0.00568548]
[1739466438786,0.75755,2639.7,2639.6,0.00568548]
[1739466439982,0.82345602,2639.7,2639.6,0.00568548]
[1739466440377,7.95982602,2639.7,2638.9,0.75775]
[1739466440683,3.2078,2639.3,2638.7,8.95266746]
[1739466441372,3.2078,2639.3,2639.1,0.7577]
[1739466441578,3.21348548,2639.3,2639.0,3.94586746]
[1739466441883,0.00568548,2639.3,2639.2,0.75769]
[1739466442780,0.00568548,2639.3,2639.0,3.94586746]
[1739466443085,0.00568548,2639.3,2639.2,0.75769]
[1739466443272,0.76335548,2639.3,2639.0,3.94586746]
[1739466443475,0.00568548,2639.3,2639.2,0.75769]
[1739466444085,0.00568548,2639.3,2639.0,3.94586746]
[1739466444496,0.00568548,2639.3,2639.2,0.75769]
[1739466445679,0.00568548,2639.3,2639.1,0.5932]
[1739466445879,0.00568548,2639.3,2639.2,0.75769]
[1739466446179,3.96522,2640.2,2639.1,6.5932]
[1739466446375,3.2078,2640.2,2640.1,0.75743]
[1739466446581,0.75736,2640.4,2640.0,3.94586746]
[1739466446884,3.2078,2640.5,2640.1,0.56]
[1739466447184,0.75738,2640.3,2640.1,1.31741]
[1739466447385,3.2078,2640.5,2640.1,0.56]
[1739466447588,0.75738,2640.3,2640.2,0.75739]
[1739466447785,3.2078,2640.5,2640.2,0.75739]
[1739466447984,3.96514,2640.5,2640.1,0.56]
[1739466448288,3.2078,2640.5,2640.1,0.56]
[1739466448486,3.2078,2640.5,2640.2,0.75738]
[1739466448692,3.2078,2640.5,2640.4,0.75735]
[1739466448885,3.2078,2640.5,2640.3,3.94586746]
[1739466449188,3.2078,2640.5,2640.4,0.75735]
[1739466449585,3.2078,2640.5,2640.3,3.94586746]
[1739466449784,3.96513,2640.5,2640.3,3.94586746]
[1739466449981,3.96513,2640.5,2640.2,0.5641]
[1739466449982,0.75738,2640.3,2640.2,0.5641]
[1739466450282,3.2078,2640.5,2640.1,0.56]
[1739466450484,0.75743,2640.1,2640.0,3.95155294]
[1739466450882,0.75743,2640.1,2640.0,0.00568548]
[1739466451288,0.75749,2639.9,2639.7,0.75755]
[1739466451484,0.7575,2639.9,2639.7,0.75753]
[1739466451682,3.2078,2639.8,2639.7,3.94586746]
[1739466451881,3.2078,2639.8,2639.7,4.70341746]
[1739466452291,3.96532,2639.8,2639.6,0.75757]
[1739466452484,3.2078,2639.8,2639.5,0.00568548]
[1739466453289,0.75758,2639.6,2639.5,0.00568548]
[1739466454585,0.75779,2638.9,2638.6,0.75785]
[1739466454791,3.2078,2639.1,2638.5,4.53436746]
[1739466455087,3.2078,2639.1,2639.0,0.75775]
[1739466455286,3.96553,2639.1,2638.8,0.7578]
[1739466455489,3.2078,2639.1,2638.6,40.8]
[1739466455787,0.75773,2639.1,2638.8,0.75779]
[1739466456086,0.5821,2639.5,2638.7,0.00568548]
[1739466456087,3.2078,2638.9,2638.7,0.00568548]
[1739466456293,0.52738102,2639.1,2639.0,0.75775]
[1739466456791,5.0058,2639.3,2638.8,3.94586746]
[1739466457087,5.0058,2639.3,2638.8,4.70365746]
[1739466457289,0.75772,2639.2,2638.9,0.75777]
[1739466457591,0.52861597,2639.2,2638.8,3.94586746]
[1739466457794,0.52861597,2639.2,2639.1,0.75772]
[1739466458288,1.28631597,2639.2,2638.8,3.94586746]
[1739466458590,0.52861597,2639.2,2639.1,0.75772]
[1739466458796,3.2078,2639.3,2638.9,0.5981]
[1739466459595,3.2078,2639.3,2639.2,0.75769]
[1739466462491,0.75769,2639.2,2639.0,0.5896]
[1739466462697,0.75772,2639.1,2638.9,0.5981]
[1739466462896,3.96548,2639.3,2639.2,0.75769]
[1739466463095,3.2078,2639.3,2639.2,0.75769]
[1739466463299,3.73715533,2639.3,2639.2,0.75769]
[1739466463791,3.2078,2639.3,2639.2,0.75769]
[1739466464595,3.2078,2639.6,2639.1,3.94586746]
[1739466464792,3.2078,2639.6,2639.5,0.7576]
[1739466465094,3.96538,2639.6,2639.5,0.7576]
[1739466465495,3.2078,2639.6,2639.5,0.7576]
[1739466466097,3.2078,2639.6,2639.3,0.75765]
[1739466466396,3.2078,2639.6,2639.0,0.75773]
[1739466466397,0.5445,2639.5,2639.0,0.75773]
[1739466466595,3.2078,2639.1,2639.0,0.75773]
[1739466466795,3.96552,2639.1,2639.0,0.75773]
[1739466467002,3.2078,2639.1,2639.0,0.75773]
[1739466467491,3.96552,2639.1,2639.0,0.75773]
[1739466467693,3.2078,2639.1,2639.0,0.75773]
[1739466468592,0.75777,2639.0,2638.8,3.94586746]
[1739466468795,0.75781,2638.8,2638.7,0.00568548]
[1739466468996,0.75793,2638.4,2638.2,3.96576]
[1739466469192,0.5597,2638.7,2638.3,0.75792]
[1739466469391,0.5597,2638.7,2638.2,3.2078]
[1739466469392,0.5597,2638.7,2638.2,7.15366746]
[1739466469590,0.5597,2638.7,2638.6,0.75786]
[1739466469796,3.2078,2638.8,2638.6,0.75786]
[1739466469993,3.2078,2638.8,2638.2,7.15366746]
[1739466470192,0.75785,2638.7,2638.5,0.75788]
[1739466470392,3.96561,2638.8,2638.6,0.75784]
[1739466470898,0.75783,2638.7,2638.6,0.75786]
[1739466471103,0.75783,2638.7,2638.4,0.00568548]
[1739466471296,3.2078,2638.8,2638.4,0.00568548]
[1739466471598,3.2078,2638.8,2638.4,0.76359548]
[1739466471795,0.75784,2638.7,2638.5,0.75788]
[1739466472300,0.75788,2638.6,2638.4,0.76358548]
[1739466472496,0.75785,2638.7,2638.4,0.00568548]
[1739466472702,3.2078,2638.8,2638.7,0.75784]
[1739466472904,3.96562,2638.8,2638.6,0.75784]
[1739466473103,3.2078,2638.8,2638.4,0.00568548]
[1739466473399,3.2078,2638.8,2638.7,0.75784]
[1739466474095,3.2078,2638.8,2638.5,0.75788]
[1739466474297,3.2078,2638.8,2638.4,0.00568548]
[1739466474700,3.2078,2638.8,2638.7,0.75784]
[1739466475497,3.2078,2638.8,2638.5,4.52816746]
[1739466475701,3.96562,2638.8,2638.7,0.75784]
[1739466475901,3.2078,2638.8,2638.7,0.75784]
[1739466476099,0.00568548,2639.0,2638.9,0.75778]
[1739466476300,0.00568548,2639.0,2638.5,5.11846746]
[1739466476604,0.75778,2638.9,2638.8,0.75778]
[1739466476897,0.00568548,2639.0,2638.7,0.75782]
[1739466477096,0.00568548,2639.0,2638.5,5.74386746]
[1739466477400,0.00568548,2639.0,2638.8,0.7578]
[1739466477597,0.75779,2638.9,2638.8,0.7578]
[1739466477794,0.76345548,2639.0,2638.8,0.75778]
[1739466478003,0.76345548,2639.0,2638.9,0.75778]
[1739466478300,0.75779,2638.9,2638.8,0.75781]
[1739466478497,0.75779,2638.9,2638.5,3.94586746]
[1739466478702,0.75782,2638.8,2638.5,3.94586746]
[1739466479003,0.75778,2638.9,2638.5,5.84059746]
[1739466479194,0.00568548,2639.0,2638.5,5.84059746]
[1739466479396,0.75782,2638.8,2638.7,0.75782]
[1739466479595,0.75785,2638.7,2638.6,0.75784]
[1739466479790,3.2078,2638.8,2638.4,0.00568548]
[1739466479995,3.2078,2638.5,2638.4,0.76358548]
[1739466480403,3.96569,2638.5,2638.4,0.00568548]
[1739466480899,3.2078,2638.5,2638.4,0.00568548]
[1739466481102,1.31659,2638.9,2638.8,0.75781]
[1739466481408,0.5588,2638.9,2638.8,0.75781]
[1739466481701,0.5588,2638.9,2638.5,4.50286746]
[1739466481902,0.75786,2638.6,2638.5,0.557]
[1739466482095,0.75789,2638.5,2638.4,0.00568548]
[1739466482294,3.96569,2638.5,2638.4,0.76360548]
[1739466482895,3.2078,2638.5,2638.4,0.76360548]
[1739466483404,3.2078,2638.8,2638.7,0.75784]
[1739466484503,3.2078,2638.8,2638.6,3.38955241]
[1739466484709,0.75784,2638.7,2638.6,3.38955241]
[1739466485800,3.2078,2638.8,2638.4,0.00568548]
[1739466486004,3.96569,2638.5,2638.4,0.00568548]
[1739466486410,0.75799,2638.2,2638.1,0.758]
[1739466486607,0.75799,2638.2,2638.1,0.75801]
[1739466486608,3.2078,2638.2,2638.1,0.75801]
[1739466486811,0.75801,2638.1,2638.0,3.38955241]
[1739466487012,0.75801,2638.1,2638.0,4.14759241]
[1739466487310,3.2078,2638.2,2638.0,4.14757241]
[1739466487509,0.75801,2638.1,2638.0,3.38955241]
[1739466487900,0.75801,2638.1,2638.0,4.14758241]
[1739466488505,3.2078,2638.2,2638.0,3.38955241]
[1739466488699,0.75801,2638.1,2638.0,4.14757241]
[1739466488913,0.75801,2638.1,2638.0,3.38955241]
[1739466489213,0.75801,2638.1,2638.0,4.14757241]
[1739466489410,3.2078,2638.2,2638.0,3.38955241]
[1739466489612,3.2078,2638.2,2638.1,0.75801]
[1739466489916,1.31584,2638.4,2638.0,3.38955241]
[1739466490103,3.2078,2638.3,2638.0,3.38955241]
[1739466490304,3.2078,2638.3,2638.2,0.75798]
[1739466490505,3.96577,2638.3,2638.1,0.75799]
[1739466490808,3.2078,2638.3,2638.0,3.38955241]
[1739466491002,3.96576,2638.3,2638.0,3.38955241]
[1739466491215,3.2078,2638.3,2638.0,3.38955241]
[1739466491514,3.2078,2638.3,2637.9,0.75806]
[1739466491718,0.75804,2638.0,2637.9,0.75806]
[1739466491910,3.2078,2638.3,2637.8,0.00568548]
[1739466492116,3.96587,2637.9,2637.8,0.00568548]
[1739466493315,3.27375217,2637.9,2637.1,5.18855241]
[1739466493612,3.96599,2637.5,2637.3,0.75822]
[1739466493817,3.96599,2637.5,2637.3,0.75821]
[1739466494016,0.75823,2637.4,2637.2,0.75826]
[1739466494213,3.2078,2637.5,2637.1,4.14783241]
[1739466494409,0.75825,2637.3,2637.1,3.38955241]
[1739466494615,0.75826,2637.3,2637.1,0.75828]
[1739466494919,3.2078,2637.5,2637.0,0.00568548]
[1739466495310,3.2078,2637.2,2637.0,0.00568548]
[1739466495619,0.7583,2637.1,2637.0,0.00568548]
[1739466495808,3.2078,2637.2,2637.1,0.7583]
[1739466496004,3.2078,2637.5,2637.1,3.38955241]
[1739466496218,0.75822,2637.4,2637.1,4.14782241]
[1739466496415,3.2078,2637.5,2637.4,0.75821]
[1739466497019,3.2078,2637.5,2637.1,3.38955241]
[1739466497312,0.75823,2637.4,2637.1,3.38955241]
[1739466497519,3.2078,2637.5,2637.1,3.38955241]
[1739466497815,3.2078,2637.2,2637.1,3.38955241]
[1739466498012,3.2078,2637.2,2637.1,4.14785241]
[1739466498517,3.2078,2637.2,2637.0,0.00568548]
[1739466499022,3.2078,2637.2,2637.0,0.76398548]
[1739466499313,3.2078,2637.2,2637.0,0.00568548]
[1739466499616,3.2078,2637.2,2637.1,0.7583]
[1739466499821,3.96599,2637.5,2637.1,3.38955241]
[1739466500119,3.2078,2637.2,2637.1,3.38955241]
[1739466500313,0.7583,2637.1,2637.0,0.00568548]
[1739466500709,3.2078,2637.2,2637.0,0.00568548]
[1739466501810,0.7583,2637.1,2637.0,0.00568548]
[1739466502421,0.7583,2637.1,2637.0,0.76401548]
[1739466502618,3.2078,2637.2,2637.1,0.7583]
[1739466503819,3.2078,2637.2,2637.0,0.00568548]
[1739466504120,3.2078,2637.2,2637.1,0.7583]
[1739466504313,3.2078,2637.2,2637.1,4.14785241]
[1739466505410,3.96607,2637.2,2637.1,4.14785241]
[1739466506216,3.2078,2637.2,2637.1,4.14785241]
[1739466507220,3.21348548,2637.6,2637.5,0.75818]
[1739466508517,0.00568548,2637.6,2637.5,0.75818]
[1739466508721,3.2078,2637.9,2637.8,0.7581]
[1739466508920,3.2078,2637.9,2637.8,4.14765241]
[1739466509215,3.2078,2638.2,2638.1,0.75801]
[1739466509521,3.2078,2638.2,2638.1,4.14756241]
[1739466510424,0.76361548,2638.4,2638.3,0.75795]
[1739466510615,0.00568548,2638.4,2638.3,0.75795]
[1739466511323,0.00568548,2638.4,2638.1,3.38955241]
[1739466511518,0.76362548,2638.4,2638.3,0.75795]
[1739466511724,0.76363548,2638.4,2638.2,0.75796]
[1739466512031,0.76363548,2638.4,2638.3,0.75795]
[1739466512032,0.00568548,2638.4,2638.3,0.75795]
[1739466514423,0.00568548,2638.4,2638.3,2.55595]
[1739466515526,3.2078,2638.8,2638.7,0.75784]
[1739466515730,3.2078,2639.1,2639.0,0.75773]
[1739466516217,3.2078,2639.1,2638.9,3.38955241]
[1739466516420,3.96553,2639.1,2639.0,0.75775]
[1739466516622,0.75775,2639.0,2638.9,3.38955241]
[1739466516926,3.2078,2639.1,2638.7,1.18298548]
[1739466517127,3.2078,2639.1,2639.0,0.75775]
[1739466517831,0.00568548,2639.3,2639.2,0.75769]
[1739466518022,0.00568548,2639.3,2639.2,4.14724241]
[1739466526130,0.76334548,2639.3,2639.2,4.14724241]
[1739466526931,0.00568548,2639.3,2639.2,4.14724241]
[1739466527529,0.76334548,2639.3,2639.2,4.14724241]
[1739466528031,0.00568548,2639.3,2639.2,4.14724241]
[1739466528827,0.76334548,2639.3,2639.2,4.14724241]
[1739466529840,0.00568548,2639.3,2639.2,4.14724241]
[1739466530042,0.76334548,2639.3,2639.2,4.14724241]
[1739466530240,0.00568548,2639.3,2639.2,4.14724241]
[1739466530540,0.76334548,2639.3,2639.2,4.14724241]
[1739466530841,0.60748548,2639.3,2639.2,4.14724241]
[1739466531139,1.36514548,2639.3,2639.2,4.14724241]
[1739466531436,1.36514548,2639.3,2639.2,3.38955241]
[1739466531628,1.36514548,2639.3,2639.2,4.14724241]
[1739466532135,1.36514548,2639.3,2638.7,1.18298548]
[1739466532136,1.89424,2639.2,2638.7,0.00568548]
[1739466532342,3.2078,2638.9,2638.8,0.7578]
[1739466532543,0.75781,2638.8,2638.7,0.00568548]
[1739466532741,3.96559,2638.9,2638.8,0.75781]
[1739466532938,3.2078,2638.9,2638.8,0.75781]
[1739466533133,3.2078,2640.2,2638.8,7.35516241]
[1739466533336,3.2078,2639.9,2639.7,3.38955241]
[1739466533738,3.2078,2639.9,2639.7,44.18955241]
[1739466533947,3.2078,2639.9,2639.7,3.38955241]
[1739466534439,1.797,2640.8,2639.7,3.38955241]
[1739466534440,3.2078,2640.3,2640.2,0.75741]
[1739466534641,3.96519,2640.3,2640.0,4.14700241]
[1739466534941,0.75745,2640.1,2639.8,0.75751]
[1739466535137,3.2078,2640.0,2639.8,0.75751]
[1739466535548,3.2078,2640.0,2639.7,3.38955241]
[1739466536344,3.96528,2640.0,2639.7,4.14708241]
[1739466536640,3.2078,2640.0,2639.7,3.38955241]
[1739466536839,3.96527,2640.0,2639.7,4.14709241]
[1739466537043,3.2078,2640.0,2639.7,3.38955241]
[1739466537240,3.96528,2640.0,2639.7,4.14709241]
[1739466537539,0.75752,2639.8,2639.7,3.38955241]